Workbook

Sheet ＴＯＰ
B4: 入力・移動 各シートの | E4: に必要事項を入力します。
B5: 印刷 各シートはＡ４サイズの用紙に出力されます。
B7: 入力・移動 | D7: 印刷 | F7: 説明
F9: 事業者名と年齢、シミュレーションの対象年度を入力してください。
F11: 前年一年の不動産所得の所得税青色申告決算書の数字を転記します（シミュレーションの基礎数字になります。）
F13: 前年の所得税確定申告書の第一表の数字を転記します。
F15: 不動産所得の青色専従者の給与の状況と、法人成り後に家族に支払う給与の見込額を入力します。
F17: 法人設立後の税理士報酬の増加額など経費の増減額を、こちらに入力します。
F19: 所得税青色申告決算書の数字を、自動的に法人の損益計算書に組み替えます。追加事項がある場合には、入力してください。
F21: 組み替えた損益計算書から、法人の税金を計算します。申告調整項目がある場合には、入力してください。
F23: 個人事業の場合の税金・社会保険料の負担額と、法人成り後の税金・社会保険料を一枚のシートで対比します。
F25: 提供：小林敬幸税理士事務所
F26: Ver. 1.0
D27: 保護パスワードは、左の本の背面の
D28: ２つめのバーコードの数字
D29: （1920で始まる１３ケタの数字（半角））
D30: になっています。
D31: ご活用いただけるようでしたら
D32: ぜひ本書もお求めください。

Sheet 基本情報入力
C7: ●基本情報
C8: お名前 | F8: 笹部 隆一
C10: 年齢 | F10: 54
C12: ●シミュレーション年度 | F12: 平成 | G12: 27 | H12: 年度
C14: ●共有の場合の共有者の名前と持分
F15: Ｎｏ. | G15: 名前 | I15: 持分
F16: 1 | G16: =F8 -> 笹部 隆一 | I16: 1 | J16: / | K16: 2 | L16: =IF(ISERROR(I16/K16),0,I16/K16) -> 0.5
F17: 2 | G17: 笹部 典子 | I17: 1 | J17: / | K17: 2 | L17: =IF(ISERROR(I17/K17),0,I17/K17) -> 0.5
F18: 3 | J18: / | L18: 0
F19: 合計 | I19: =I24 -> 2 | J19: / | K19: =MAX(K16:K18) -> 2
I20: =IF(I19=K19,"","↑合計が「１／１」になりません。持分の入力は間違っていませんか？") -> 
F21: 1 | I21: =IF(ISERROR(I16*(K$21/K16)),0,I16*(K$21/K16)) -> 1 | K21: =LCM(K16,K17,K18) -> 2
F22: 2 | I22: =IF(ISERROR(I17*(K$21/K17)),0,I17*(K$21/K17)) -> 1
F23: 3 | I23: 0
I24: =SUM(I21:I23) -> 2

Sheet 個人青色申告決算書
BO3: 1 | BP3: =LOOKUP(BO3,BO4:BP5,BP4:BP5) -> 提出用
BO4: 1 | BP4: 提出用
BO5: 2 | BP5: 控 用
Q6: 平 成 | V6: =基本情報入力!G12 -> 27 | AB6: 年分所得税青色申告決算書 | AV6: （不動産所得用）
R8: 住所 | AK8: フリガナ | AO8: =PHONETIC(基本情報入力!F8) -> ササベ リュウイチ | AX8: 依頼税理士等 | AY8: 事務所
AY9: 所在地
AK10: 氏名 | AO10: =基本情報入力!F8 -> 笹部 隆一
AY11: 氏名
R12: 職業 | AK12: 電話 | AY12: (名称)
AY13: 電話
AK14: 番号
AY15: 番号
A18: 平成 | D18: 年 | F18: 月 | H18: 日 | AX18: 共有の場合は、合計額を入力してください。
M19: 損益計算書 | AC19: (自 | AE19: 1 | AG19: 月 | AH19: 1 | AL19: 日 | AM19: 至 | AO19: 12 | AQ19: 月 | AR19: 31 | AT19: 日)
B22: 科 目 | N22: 金 | R22: 額 | V22: (円) | X22: 科 目 | AM22: 金 | AR22: 額 | AT22: (円)
B23: 収入金額 | C23: 賃貸料 | J23: 1 | L23: 22321530 | X23: 必要経費 | Z23: 支払手数料 | AH23: 13 | AJ23: 63000
C25: 礼金・権利金 更新料 | J25: 2 | AH25: 14
C27: その他の収入金額 | J27: 3 | L27: 652301 | AH27: 15
C29: 計 | J29: 4 | L29: =SUM(L23:V28) -> 22973831 | Z29: 税理士報酬 | AH29: 16 | AJ29: 52500
B31: 必要経費 | C31: 租税公課 | J31: 5 | L31: 840520 | Z31: その他の経費 | AH31: 17 | AJ31: 31500
C33: 損害保険料 | J33: 6 | L33: 35612 | Z33: 計 | AH33: 18 | AJ33: =SUM(L31:V46)+SUM(AJ23:AT32) -> 9095664
C35: 修繕費 | J35: 7 | L35: 459800 | X35: 差引金額 | AE35: （4－18） | AH35: 19 | AJ35: =L29-AJ33 -> 13878167
C37: 減価償却費 | J37: 8 | L37: 5200621 | X37: 専従者給与 | AH37: 20 | AJ37: 960000
C39: 借入金利子 | J39: 9 | L39: 2232111 | X39: 青色申告特別控 除前の所得金額 | AE39: （19－20） | AH39: 21 | AJ39: =AJ35-AJ37 -> 12918167
C41: 地代家賃 | J41: 10 | X41: 青色申告 特別控除額 | AD41: 65万円又は10万円 と 21 のいずれか 少ない方の金額 | AH41: 22 | AJ41: 650000 | AV41: ←{ | AW41: 青色申告特別控除については、「決算 の手引き」の「青色申告特別控除」の 項を読んでください。
C43: 給料賃金 | J43: 11 | X43: 所得金額 | AE43: （ 21 － 22 ） | AH43: 23 | AJ43: =AJ39-AJ41 -> 12268167
AV44: ←{ | AW44: 23 欄が赤字の人で必要経費に算入した 金額のうちに土地等を取得するために 要した負債の利子の額がある人は、そ の負債の利子の額を書いてください。
C45: 管理手数料 | J45: 12 | L45: 180000 | X45: 土地等を取得するために 要した負債の利子の額 | BO45: =AJ45*100000000+AL45*10000000+AM45*1000000+AO45*100000+AP45*10000+AQ45*1000+AR45*100+AS45*10+AT45 -> 0

Sheet 事業主の所得税申告状況
A7: 個人事業主の所得税申告状況
B8: 名前 | D8: =個人青色申告決算書!AO10 -> 笹部 隆一 | G8: =IF(基本情報入力!G17="","",基本情報入力!G17) -> 笹部 典子 | J8: =IF(基本情報入力!G18="","",基本情報入力!G18) -> 
B9: 共有持分 | D9: =IF(基本情報入力!G17="",1,基本情報入力!L16) -> 0.5 | G9: =基本情報入力!L17 -> 0.5 | J9: =基本情報入力!L18 -> 0
D10: 元の金額 | E10: 増減額 | F10: 増減後の金額 | G10: 元の金額 | H10: 増減額 | I10: 増減後の金額 | J10: 元の金額 | K10: 増減額 | L10: 増減後の金額
A11: ①所得金額 | B11: 不動産所得の金額 | D11: =個人青色申告決算書!AJ43*D9 -> 6134083.5 | F11: =SUM(D11:E11) -> 6134083.5 | G11: =個人青色申告決算書!AJ43*G9 -> 6134083.5 | I11: =SUM(G11:H11) -> 6134083.5 | J11: =個人青色申告決算書!AM43*J9 -> 0 | L11: =SUM(J11:K11) -> 0
B12: その他の 所得の額 | C12: うち給与の金額 | D12: 4800000 | F12: =SUM(D12:E12) -> 4800000 | G12: 840000 | I12: =SUM(G12:H12) -> 840000 | L12: =SUM(J12:K12) -> 0
C13: 給与所得金額 | D13: =IF(D12<=650000,D12-D12,IF(D12<=1625000,D12-650000,IF(D12<=1800000,D12-(D12*0.4),IF(D12<=3600000,D12-(D12*0.3+180000),IF(D12<=6600000,D12-(D12*0.2+540000),IF(D12<=10000000,D12-(D12*0.1+1200000),D12-(D12*0.05+1700000))))))) -> 3300000 | F13: =IF(F12<=650000,F12-F12,IF(F12<=1625000,F12-650000,IF(F12<=1800000,F12-(F12*0.4),IF(F12<=3600000,F12-(F12*0.3+180000),IF(F12<=6600000,F12-(F12*0.2+540000),IF(F12<=10000000,F12-(F12*0.1+1200000),F12-(F12*0.05+1700000))))))) -> 3300000 | G13: =IF(G12<=650000,G12-G12,IF(G12<=1625000,G12-650000,IF(G12<=1800000,G12-(G12*0.4),IF(G12<=3600000,G12-(G12*0.3+180000),IF(G12<=6600000,G12-(G12*0.2+540000),IF(G12<=10000000,G12-(G12*0.1+1200000),G12-(G12*0.05+1700000))))))) -> 190000 | I13: =IF(I12<=650000,I12-I12,IF(I12<=1625000,I12-650000,IF(I12<=1800000,I12-(I12*0.4),IF(I12<=3600000,I12-(I12*0.3+180000),IF(I12<=6600000,I12-(I12*0.2+540000),IF(I12<=10000000,I12-(I12*0.1+1200000),I12-(I12*0.05+1700000))))))) -> 190000 | J13: =IF(J12<=650000,J12-J12,IF(J12<=1625000,J12-650000,IF(J12<=1800000,J12-(J12*0.4),IF(J12<=3600000,J12-(J12*0.3+180000),IF(J12<=6600000,J12-(J12*0.2+540000),IF(J12<=10000000,J12-(J12*0.1+1200000),J12-(J12*0.05+1700000))))))) -> 0 | L13: =IF(L12<=650000,L12-L12,IF(L12<=1625000,L12-650000,IF(L12<=1800000,L12-(L12*0.4),IF(L12<=3600000,L12-(L12*0.3+180000),IF(L12<=6600000,L12-(L12*0.2+540000),IF(L12<=10000000,L12-(L12*0.1+1200000),L12-(L12*0.05+1700000))))))) -> 0
C14: 給与以外の所得金額 | F14: 0 | I14: 0 | L14: 0
B15: 所得金額合計 | D15: =SUM(D11,D13:D14) -> 9434083.5 | F15: =SUM(F11,F13:F14) -> 9434083.5 | G15: =SUM(G11,G13:G14) -> 6324083.5 | I15: =SUM(I11,I13:I14) -> 6324083.5 | J15: =SUM(J11,J13:J14) -> 0 | L15: =SUM(L11,L13:L14) -> 0
A16: ②所得控除額 | B16: 社会保険料控除額
B17: （国民健康保険料） | D17: 530000 | F17: =SUM(D17:E17) -> 530000 | G17: 530000 | I17: =SUM(G17:H17) -> 530000 | L17: =SUM(J17:K17) -> 0
B18: （国民年金保険料） | D18: 170000 | F18: =SUM(D18:E18) -> 170000 | G18: 170000 | I18: =SUM(G18:H18) -> 170000 | L18: =SUM(J18:K18) -> 0
B19: （その他の社会保険料） | F19: 0 | I19: 0 | L19: 0
B20: 小規模企業共済掛金控除 | F20: 0 | I20: 0 | L20: 0
B21: 生命保険料控除 | D21: 50000 | F21: 50000 | G21: 80000 | I21: 80000 | L21: 0
B22: 地震保険料控除 | F22: 0 | I22: 0 | L22: 0
B23: 寡婦・寡夫控除 | F23: 0 | I23: 0 | L23: 0
B24: 障害者控除 | F24: 0 | I24: 0 | L24: 0
B25: 配偶者控除 | F25: 0 | I25: 0 | L25: 0
B26: 配偶者特別控除 | F26: 0 | I26: 0 | L26: 0
B27: 扶養控除 | D27: 380000 | F27: 380000 | I27: 0 | L27: 0
B28: その他の所得控除 | D28: 50000 | F28: 50000 | G28: 50000 | I28: 50000 | L28: 0
B29: 基礎控除 | D29: 380000 | F29: 380000 | G29: 380000 | I29: 380000 | J29: 380000 | L29: 380000
B30: 所得控除額合計 | D30: =SUM(D16:D29) -> 1560000 | F30: =SUM(F16:F29) -> 1560000 | G30: =SUM(G16:G29) -> 1210000 | I30: =SUM(I16:I29) -> 1210000 | J30: =SUM(J16:J29) -> 380000 | L30: =SUM(L16:L29) -> 380000
A31: ①－② | B31: 課税所得金額 | D31: =IF(D15-D30<0,0,ROUNDDOWN((D15-D30),-3)) -> 7874000 | F31: =IF(F15-F30<0,0,ROUNDDOWN((F15-F30),-3)) -> 7874000 | G31: =IF(G15-G30<0,0,ROUNDDOWN((G15-G30),-3)) -> 5114000 | I31: =IF(I15-I30<0,0,ROUNDDOWN((I15-I30),-3)) -> 5114000 | J31: =IF(J15-J30<0,0,ROUNDDOWN((J15-J30),-3)) -> 0 | L31: =IF(L15-L30<0,0,ROUNDDOWN((L15-L30),-3)) -> 0
B32: 所得税額 | D32: =IF(D31<=1950000,ROUNDDOWN(D31*0.05,0),IF(D31<=3300000,ROUNDDOWN(D31*0.1-97500,0),IF(D31<=6950000,ROUNDDOWN(D31*0.2-427500,0),IF(D31<=9000000,ROUNDDOWN(D31*0.23-636000,0),IF(D31<=18000000,ROUNDDOWN(D31*0.33-1536000,0),IF(D31<=40000000,ROUNDDOWN(D31*0.4-2796000,0),ROUNDDOWN(D31*0.45-4796000,0))))))) -> 1175020 | F32: =IF(F31<=1950000,ROUNDDOWN(F31*0.05,0),IF(F31<=3300000,ROUNDDOWN(F31*0.1-97500,0),IF(F31<=6950000,ROUNDDOWN(F31*0.2-427500,0),IF(F31<=9000000,ROUNDDOWN(F31*0.23-636000,0),IF(F31<=18000000,ROUNDDOWN(F31*0.33-1536000,0),IF(F31<=40000000,ROUNDDOWN(F31*0.4-2796000,0),ROUNDDOWN(F31*0.45-4796000,0))))))) -> 1175020 | G32: =IF(G31<=1950000,ROUNDDOWN(G31*0.05,0),IF(G31<=3300000,ROUNDDOWN(G31*0.1-97500,0),IF(G31<=6950000,ROUNDDOWN(G31*0.2-427500,0),IF(G31<=9000000,ROUNDDOWN(G31*0.23-636000,0),IF(G31<=18000000,ROUNDDOWN(G31*0.33-1536000,0),IF(G31<=40000000,ROUNDDOWN(G31*0.4-2796000,0),ROUNDDOWN(G31*0.45-4796000,0))))))) -> 595300 | I32: =IF(I31<=1950000,ROUNDDOWN(I31*0.05,0),IF(I31<=3300000,ROUNDDOWN(I31*0.1-97500,0),IF(I31<=6950000,ROUNDDOWN(I31*0.2-427500,0),IF(I31<=9000000,ROUNDDOWN(I31*0.23-636000,0),IF(I31<=18000000,ROUNDDOWN(I31*0.33-1536000,0),IF(I31<=40000000,ROUNDDOWN(I31*0.4-2796000,0),ROUNDDOWN(I31*0.45-4796000,0))))))) -> 595300 | J32: =IF(J31<=1950000,ROUNDDOWN(J31*0.05,0),IF(J31<=3300000,ROUNDDOWN(J31*0.1-97500,0),IF(J31<=6950000,ROUNDDOWN(J31*0.2-427500,0),IF(J31<=9000000,ROUNDDOWN(J31*0.23-636000,0),IF(J31<=18000000,ROUNDDOWN(J31*0.33-1536000,0),IF(J31<=40000000,ROUNDDOWN(J31*0.4-2796000,0),ROUNDDOWN(J31*0.45-4796000,0))))))) -> 0 | L32: =IF(L31<=1950000,ROUNDDOWN(L31*0.05,0),IF(L31<=3300000,ROUNDDOWN(L31*0.1-97500,0),IF(L31<=6950000,ROUNDDOWN(L31*0.2-427500,0),IF(L31<=9000000,ROUNDDOWN(L31*0.23-636000,0),IF(L31<=18000000,ROUNDDOWN(L31*0.33-1536000,0),IF(L31<=40000000,ROUNDDOWN(L31*0.4-2796000,0),ROUNDDOWN(L31*0.45-4796000,0))))))) -> 0
B33: 所得税+復興特別所得税額 （所得税額×１０２．１％） | D33: =ROUNDDOWN(D32*1.021,-2) -> 1199600 | F33: =ROUNDDOWN(F32*1.021,-2) -> 1199600 | G33: =ROUNDDOWN(G32*1.021,-2) -> 607800 | I33: =ROUNDDOWN(I32*1.021,-2) -> 607800 | J33: =ROUNDDOWN(J32*1.021,-2) -> 0 | L33: =ROUNDDOWN(L32*1.021,-2) -> 0
B34: 住民税額 （所得税課税所得×１０％（概算）） | D34: =ROUNDDOWN(D31*0.1,-2) -> 787400 | F34: =ROUNDDOWN(F31*0.1,-2) -> 787400 | G34: =ROUNDDOWN(G31*0.1,-2) -> 511400 | I34: =ROUNDDOWN(I31*0.1,-2) -> 511400 | J34: =ROUNDDOWN(J31*0.1,-2) -> 0 | L34: =ROUNDDOWN(L31*0.1,-2) -> 0
B35: 事業税額 | D35: =IF((個人青色申告決算書!$AJ39*D9)>2900000,ROUNDDOWN((個人青色申告決算書!$AJ39*D9-2900000)*$D37,-2),0) -> 177900 | F35: =IF((個人青色申告決算書!$AJ39*D9)>2900000,ROUNDDOWN((個人青色申告決算書!$AJ39*D9-2900000)*$D37,-2),0) -> 177900 | G35: =IF((個人青色申告決算書!$AJ39*G9)>2900000,ROUNDDOWN((個人青色申告決算書!$AJ39*G9-2900000)*$D37,-2),0) -> 177900 | I35: =IF((個人青色申告決算書!$AJ39*G9)>2900000,ROUNDDOWN((個人青色申告決算書!$AJ39*G9-2900000)*$D37,-2),0) -> 177900 | J35: =IF((個人青色申告決算書!$AJ39*J9)>2900000,ROUNDDOWN((個人青色申告決算書!$AJ39*J9-2900000)*$D37,-2),0) -> 0 | L35: =IF((個人青色申告決算書!$AJ39*J9)>2900000,ROUNDDOWN((個人青色申告決算書!$AJ39*J9-2900000)*$D37,-2),0) -> 0
A36: ③ | B36: 税額合計 | D36: =SUM(D33:D35) -> 2164900 | F36: =SUM(F33:F35) -> 2164900 | G36: =SUM(G33:G35) -> 1297100 | I36: =SUM(I33:I35) -> 1297100 | J36: =SUM(J33:J35) -> 0 | L36: =SUM(L33:L35) -> 0
B37: 個人事業税率 | D37: 0.05 | E37: ←個人事業税が課税されている場合「5％」を選択してください。
A39: ★その他の所得に係る税金
B40: 所得金額 | D40: =D13+D14 -> 3300000 | G40: =G13+G14 -> 190000 | J40: =J13+J14 -> 0
B41: 所得控除額 | D41: =D30 -> 1560000 | G41: =G30 -> 1210000 | J41: =J30 -> 380000
B42: 課税所得金額 | D42: =IF(D40-D41<0,0,D40-D41) -> 1740000 | G42: =IF(G40-G41<0,0,G40-G41) -> 0 | J42: =IF(J40-J41<0,0,J40-J41) -> 0
B43: 所得税額 | D43: =IF(D42<=1950000,ROUNDDOWN(D42*0.05,0),IF(D42<=3300000,ROUNDDOWN(D42*0.1-97500,0),IF(D42<=6950000,ROUNDDOWN(D42*0.2-427500,0),IF(D42<=9000000,ROUNDDOWN(D42*0.23-636000,0),IF(D42<=18000000,ROUNDDOWN(D42*0.33-1536000,0),ROUNDDOWN(D42*0.4-2796000,0)))))) -> 87000 | G43: =IF(G42<=1950000,ROUNDDOWN(G42*0.05,0),IF(G42<=3300000,ROUNDDOWN(G42*0.1-97500,0),IF(G42<=6950000,ROUNDDOWN(G42*0.2-427500,0),IF(G42<=9000000,ROUNDDOWN(G42*0.23-636000,0),IF(G42<=18000000,ROUNDDOWN(G42*0.33-1536000,0),ROUNDDOWN(G42*0.4-2796000,0)))))) -> 0 | J43: =IF(J42<=1950000,ROUNDDOWN(J42*0.05,0),IF(J42<=3300000,ROUNDDOWN(J42*0.1-97500,0),IF(J42<=6950000,ROUNDDOWN(J42*0.2-427500,0),IF(J42<=9000000,ROUNDDOWN(J42*0.23-636000,0),IF(J42<=18000000,ROUNDDOWN(J42*0.33-1536000,0),ROUNDDOWN(J42*0.4-2796000,0)))))) -> 0
B44: 所得税+復興特別所得税額 （所得税額×１０２．１％） | D44: =ROUNDDOWN(D43*1.021,-2) -> 88800 | G44: =ROUNDDOWN(G43*1.021,-2) -> 0 | J44: =ROUNDDOWN(J43*1.021,-2) -> 0
B45: 住民税額 （所得税課税所得×１０％（概算）） | D45: =ROUNDDOWN(D42*0.1,-2) -> 174000 | G45: =ROUNDDOWN(G42*0.1,-2) -> 0 | J45: =ROUNDDOWN(J42*0.1,-2) -> 0
B46: 税額合計 | D46: =SUM(D44:D45) -> 262800 | G46: =SUM(G44:G45) -> 0 | J46: =SUM(J44:J45) -> 0

Sheet 給与の情報
A6: 個人事業の専従者給与及び法人設立後の家族役員の給与の状況
C7: 個人事業 | I7: 法人設立後
C8: 一人目 | D8: 二人目 | E8: 三人目 | F8: 四人目 | G8: 合計 | I8: 事業主 | J8: 一人目 | K8: 二人目 | L8: 三人目 | M8: 四人目 | N8: 合計
B9: 名前 | C9: 笹部 みつ子 | I9: =基本情報入力!F8 -> 笹部 隆一 | J9: 笹部 典子 | K9: 笹部 みつ子
B10: 年齢 | C10: 52 | I10: =基本情報入力!F10 -> 54 | J10: 48 | K10: 52
B11: 関係 | C11: 妻 | J11: 妹 | K11: 妻
A12: ①所得金額 | B12: 給与の額 | C12: 960000 | G12: =SUM(C12:F12) -> 960000 | H12: =IF(G12=個人青色申告決算書!AJ37,"ＯＫ","不一致") -> ＯＫ | I12: 3000000 | J12: 5370000 | K12: 1296000 | N12: =SUM(I12:M12) -> 9666000
B13: 月額給与 | I13: =ROUNDDOWN(I12/12,0) -> 250000 | J13: =ROUNDDOWN(J12/12,0) -> 447500 | K13: =ROUNDDOWN(K12/12,0) -> 108000 | L13: =ROUNDDOWN(L12/12,0) -> 0 | M13: =ROUNDDOWN(M12/12,0) -> 0
B14: 他社からもらっている給与の額 | I14: =事業主の所得税申告状況!F12 -> 4800000 | J14: 840000
B15: 給与額の合計 | C15: =SUM(C12,C14) -> 960000 | D15: =SUM(D12,D14) -> 0 | E15: 0 | F15: 0 | I15: =SUM(I12,I14) -> 7800000 | J15: =SUM(J12,J14) -> 6210000 | K15: 1296000 | L15: 0 | M15: 0
B16: 給与所得額 | C16: =IF(C15<=650000,C15-C15,IF(C15<=1625000,C15-650000,IF(C15<=1800000,C15-(C15*0.4),IF(C15<=3600000,C15-(C15*0.3+180000),IF(C15<=6600000,C15-(C15*0.2+540000),IF(C15<=10000000,C15-(C15*0.1+1200000),C15-(C15*0.05+1700000))))))) -> 310000 | D16: =IF(D15<=650000,D15-D15,IF(D15<=1625000,D15-650000,IF(D15<=1800000,D15-(D15*0.4),IF(D15<=3600000,D15-(D15*0.3+180000),IF(D15<=6600000,D15-(D15*0.2+540000),IF(D15<=10000000,D15-(D15*0.1+1200000),D15-(D15*0.05+1700000))))))) -> 0 | E16: 0 | F16: 0 | I16: =IF(I15<=650000,I15-I15,IF(I15<=1625000,I15-650000,IF(I15<=1800000,I15-(I15*0.4),IF(I15<=3600000,I15-(I15*0.3+180000),IF(I15<=6600000,I15-(I15*0.2+540000),IF(I15<=10000000,I15-(I15*0.1+1200000),I15-(I15*0.05+1700000))))))) -> 5820000 | J16: =IF(J15<=650000,J15-J15,IF(J15<=1625000,J15-650000,IF(J15<=1800000,J15-(J15*0.4),IF(J15<=3600000,J15-(J15*0.3+180000),IF(J15<=6600000,J15-(J15*0.2+540000),IF(J15<=10000000,J15-(J15*0.1+1200000),J15-(J15*0.05+1700000))))))) -> 4428000 | K16: 646000 | L16: 0 | M16: 0
B17: 他社給与所得額 | C17: =IF(C14<=650000,C14-C14,IF(C14<=1625000,C14-650000,IF(C14<=1800000,C14-(C14*0.4),IF(C14<=3600000,C14-(C14*0.3+180000),IF(C14<=6600000,C14-(C14*0.2+540000),IF(C14<=10000000,C14-(C14*0.1+1200000),C14-(C14*0.05+1700000))))))) -> 0 | D17: =IF(D14<=650000,D14-D14,IF(D14<=1625000,D14-650000,IF(D14<=1800000,D14-(D14*0.4),IF(D14<=3600000,D14-(D14*0.3+180000),IF(D14<=6600000,D14-(D14*0.2+540000),IF(D14<=10000000,D14-(D14*0.1+1200000),D14-(D14*0.05+1700000))))))) -> 0 | E17: 0 | F17: 0 | I17: =IF(I14<=650000,I14-I14,IF(I14<=1625000,I14-650000,IF(I14<=1800000,I14-(I14*0.4),IF(I14<=3600000,I14-(I14*0.3+180000),IF(I14<=6600000,I14-(I14*0.2+540000),IF(I14<=10000000,I14-(I14*0.1+1200000),I14-(I14*0.05+1700000))))))) -> 3300000 | J17: 190000 | K17: 0 | L17: 0 | M17: 0
B18: その他の所得の額 | I18: =事業主の所得税申告状況!F14 -> 0 | K18: 0
B19: 所得金額合計 | C19: =SUM(C16:C18) -> 310000 | D19: =SUM(D16:D18) -> 0 | E19: =SUM(E16:E18) -> 0 | F19: =SUM(F16:F18) -> 0 | I19: =SUM(I16,I18) -> 5820000 | J19: =SUM(J16,J18) -> 4428000 | K19: 646000 | L19: 0 | M19: 0
A20: ②所得控除額 | B20: 社会保険料控除額 | I20: =I48 -> 449904 | J20: =J48 ->  | K20: =K48 ->  | L20: =L48 ->  | M20: =M48 -> 
B21: （国民健康保険料） | J21: 530000 | N21: =SUM(I21:M21) -> 530000
B22: （国民年金保険料） | C22: 170000 | G22: =SUM(C22:F22) -> 170000 | J22: 170000 | N22: =SUM(I22:M22) -> 170000
B23: （その他の社会保険料） | I23: =事業主の所得税申告状況!F19 -> 0
B24: 小規模企業共済掛金控除 | I24: =事業主の所得税申告状況!F20 -> 0
B25: 生命保険料控除 | I25: =事業主の所得税申告状況!F21 -> 50000 | J25: 80000
B26: 地震保険料控除 | I26: =事業主の所得税申告状況!F22 -> 0
B27: 寡婦・寡夫控除 | I27: =事業主の所得税申告状況!F23 -> 0
B28: 障害者控除 | I28: =事業主の所得税申告状況!F25 -> 0
B29: 配偶者控除 | I29: =事業主の所得税申告状況!F26 -> 0
B30: 配偶者特別控除 | I30: =事業主の所得税申告状況!F26 -> 0
B31: 扶養控除 | I31: =事業主の所得税申告状況!F27 -> 380000
B32: その他の所得控除 | I32: =事業主の所得税申告状況!F28 -> 50000 | J32: 50000
B33: 基礎控除 | C33: 380000 | D33: 380000 | E33: 380000 | F33: 380000 | I33: =事業主の所得税申告状況!F29 -> 380000 | J33: 380000 | K33: 380000 | L33: 380000 | M33: 380000
B34: 所得控除額合計 | C34: =SUM(C21:C33) -> 550000 | D34: =SUM(D21:D33) -> 380000 | E34: =SUM(E21:E33) -> 380000 | F34: =SUM(F21:F33) -> 380000 | I34: =SUM(I20:I33) -> 1309904 | J34: =SUM(J20:J33) -> 1210000 | K34: =SUM(K20:K33) -> 380000 | L34: =SUM(L20:L33) -> 380000 | M34: =SUM(M20:M33) -> 380000
A35: ①－② | B35: 課税所得金額 | C35: =IF(C19-C34<0,0,ROUNDDOWN((C19-C34),-3)) -> 0 | D35: =IF(D19-D34<0,0,ROUNDDOWN((D19-D34),-3)) -> 0 | E35: 0 | F35: 0 | I35: =IF(I19-I34<0,0,ROUNDDOWN((I19-I34),-3)) -> 4510000 | J35: =IF(J19-J34<0,0,ROUNDDOWN((J19-J34),-3)) -> 3218000 | K35: 266000 | L35: 0 | M35: 0
B36: 所得税額 | C36: =IF(C35<=1950000,ROUNDDOWN(C35*0.05,0),IF(C35<=3300000,ROUNDDOWN(C35*0.1-97500,0),IF(C35<=6950000,ROUNDDOWN(C35*0.2-427500,0),IF(C35<=9000000,ROUNDDOWN(C35*0.23-636000,0),IF(C35<=18000000,ROUNDDOWN(C35*0.33-1536000,0),IF(C35<=40000000,ROUNDDOWN(C35*0.4-2796000,0),ROUNDDOWN(C35*0.45-4796000,0))))))) -> 0 | D36: =IF(D35<=1950000,ROUNDDOWN(D35*0.05,0),IF(D35<=3300000,ROUNDDOWN(D35*0.1-97500,0),IF(D35<=6950000,ROUNDDOWN(D35*0.2-427500,0),IF(D35<=9000000,ROUNDDOWN(D35*0.23-636000,0),IF(D35<=18000000,ROUNDDOWN(D35*0.33-1536000,0),IF(D35<=40000000,ROUNDDOWN(D35*0.4-2796000,0),ROUNDDOWN(D35*0.45-4796000,0))))))) -> 0 | E36: =IF(E35<=1950000,ROUNDDOWN(E35*0.05,0),IF(E35<=3300000,ROUNDDOWN(E35*0.1-97500,0),IF(E35<=6950000,ROUNDDOWN(E35*0.2-427500,0),IF(E35<=9000000,ROUNDDOWN(E35*0.23-636000,0),IF(E35<=18000000,ROUNDDOWN(E35*0.33-1536000,0),IF(E35<=40000000,ROUNDDOWN(E35*0.4-2796000,0),ROUNDDOWN(E35*0.45-4796000,0))))))) -> 0 | F36: =IF(F35<=1950000,ROUNDDOWN(F35*0.05,0),IF(F35<=3300000,ROUNDDOWN(F35*0.1-97500,0),IF(F35<=6950000,ROUNDDOWN(F35*0.2-427500,0),IF(F35<=9000000,ROUNDDOWN(F35*0.23-636000,0),IF(F35<=18000000,ROUNDDOWN(F35*0.33-1536000,0),IF(F35<=40000000,ROUNDDOWN(F35*0.4-2796000,0),ROUNDDOWN(F35*0.45-4796000,0))))))) -> 0 | G36: =SUM(C36:F36) -> 0 | I36: =IF(I35<=1950000,ROUNDDOWN(I35*0.05,0),IF(I35<=3300000,ROUNDDOWN(I35*0.1-97500,0),IF(I35<=6950000,ROUNDDOWN(I35*0.2-427500,0),IF(I35<=9000000,ROUNDDOWN(I35*0.23-636000,0),IF(I35<=18000000,ROUNDDOWN(I35*0.33-1536000,0),IF(I35<=40000000,ROUNDDOWN(I35*0.4-2796000,0),ROUNDDOWN(I35*0.45-4796000,0))))))) -> 474500 | J36: =IF(J35<=1950000,ROUNDDOWN(J35*0.05,0),IF(J35<=3300000,ROUNDDOWN(J35*0.1-97500,0),IF(J35<=6950000,ROUNDDOWN(J35*0.2-427500,0),IF(J35<=9000000,ROUNDDOWN(J35*0.23-636000,0),IF(J35<=18000000,ROUNDDOWN(J35*0.33-1536000,0),IF(J35<=40000000,ROUNDDOWN(J35*0.4-2796000,0),ROUNDDOWN(J35*0.45-4796000,0))))))) -> 224300 | K36: 13300 | L36: 0 | M36: 0 | N36: =SUM(I36:M36) -> 712100
B37: 所得税+復興特別所得税額 （所得税額×１０２．１％） | C37: =ROUNDDOWN(C36*1.021,-2) -> 0 | D37: =ROUNDDOWN(D36*1.021,-2) -> 0 | E37: =ROUNDDOWN(E36*1.021,-2) -> 0 | F37: =ROUNDDOWN(F36*1.021,-2) -> 0 | G37: =SUM(C37:F37) -> 0 | I37: =ROUNDDOWN(I36*1.021,-2) -> 484400 | J37: =ROUNDDOWN(J36*1.021,-2) -> 229000 | K37: =ROUNDDOWN(K36*1.021,-2) -> 13500 | L37: =ROUNDDOWN(L36*1.021,-2) -> 0 | M37: =ROUNDDOWN(M36*1.021,-2) -> 0 | N37: =SUM(I37:M37) -> 726900
B38: 住民税額 （所得税課税所得×１０％） | C38: =ROUNDDOWN(C35*0.1,-2) -> 0 | D38: =ROUNDDOWN(D35*0.1,-2) -> 0 | E38: =ROUNDDOWN(E35*0.1,-2) -> 0 | F38: =ROUNDDOWN(F35*0.1,-2) -> 0 | G38: =SUM(C38:F38) -> 0 | I38: =ROUNDDOWN(I35*0.1,-2) -> 451000 | J38: =ROUNDDOWN(J35*0.1,-2) -> 321800 | K38: =ROUNDDOWN(K35*0.1,-2) -> 26600 | L38: =ROUNDDOWN(L35*0.1,-2) -> 0 | M38: =ROUNDDOWN(M35*0.1,-2) -> 0 | N38: =SUM(I38:M38) -> 799400
B39: 税額合計 | C39: =SUM(C37:C38) -> 0 | D39: =SUM(D37:D38) -> 0 | E39: =SUM(E37:E38) -> 0 | F39: =SUM(F37:F38) -> 0 | G39: =SUM(G37:G38) -> 0 | I39: =SUM(I37:I38) -> 935400 | J39: 550800 | K39: 40100 | L39: 0 | M39: 0 | N39: 1526300
B40: 限界税率 | I40: =IF(I35<1950000,0.05105+0.1,IF(I35<3300000,0.1021+0.1,IF(I35<6950000,0.2042+0.1,IF(I35<9000000,0.23483+0.1,IF(I35<18000000,0.33693+0.1,0.4084+0.1))))) -> 0.3042 | J40: =IF(J35<1950000,0.05105+0.1,IF(J35<3300000,0.1021+0.1,IF(J35<6950000,0.2042+0.1,IF(J35<9000000,0.23483+0.1,IF(J35<18000000,0.33693+0.1,0.4084+0.1))))) -> 0.2021 | K40: 0.15105 | L40: 0.15105 | M40: 0.15105
B41: 役員報酬に対する社会保険料個人負担率 | I41: =IF(ISERROR(I48/I12),0,I48/I12) -> 0.149968 | J41: =IF(ISERROR(J48/J12),0,J48/J12) -> 0 | K41: 0 | L41: 0 | M41: 0
B42: 限界税率+社保個人負担率 | I42: =SUM(I40:I41) -> 0.454168 | J42: =SUM(J40:J41) -> 0.2021 | K42: 0.15105 | L42: 0.15105 | M42: 0.15105
B43: 法人の法定実効税率 | I43: =法人税シミュレーション!$E$41 -> 0.2143449617
B44: 法定実効税率+社保法人負担率 | I44: =IF(ISERROR(I43+法人税シミュレーション!$E$43),法人税シミュレーション!$E$43,I43+法人税シミュレーション!$E$43) -> 0.3656649617
A46: 社会 保険料 | B46: 社会保険の加入の有無 | I46: 加入 | J46: 非加入 | K46: 非加入 | L46: 非加入 | M46: 非加入 | N46: 合計
B47: 法人負担額 | I47: =IF(I46="非加入","",I61*12) -> 453960 | J47: =IF(J46="非加入","",J61*12) ->  | K47: =IF(K46="非加入","",K61*12) ->  | L47: =IF(L46="非加入","",L61*12) ->  | M47: =IF(M46="非加入","",M61*12) ->  | N47: =SUM(I47:M47) -> 453960
B48: 個人負担額 | I48: =IF(I46="非加入","",I60*12) -> 449904 | J48: =IF(J46="非加入","",J60*12) ->  | K48: =IF(K46="非加入","",K60*12) ->  | L48: =IF(L46="非加入","",L60*12) ->  | M48: =IF(M46="非加入","",M60*12) ->  | N48: =SUM(I48:M48) -> 449904
B49: 合計 | I49: =SUM(I47:I48) -> 903864 | J49: =SUM(J47:J48) -> 0 | K49: =SUM(K47:K48) -> 0 | L49: =SUM(L47:L48) -> 0 | M49: =SUM(M47:M48) -> 0 | N49: =SUM(I49:M49) -> 903864
A50: 社保算定 基礎数字 | B50: 保険料率の入力（最新の「健康保険・厚生年金保険 標準報酬月額・保険料額表」の料率を入力してください）
B51: 健康保険 | C51: 一般被保険者 | E51: 0.05 | I51: =IF(I10>=40,IF(I10>=65,$E51,$E52),$E51) -> 0.0586 | J51: =IF(J10>=40,IF(J10>=65,$E51,$E52),$E51) -> 0.0586 | K51: =IF(K10>=40,IF(K10>=65,$E51,$E52),$E51) -> 0.0586 | L51: =IF(L10>=40,IF(L10>=65,$E51,$E52),$E51) -> 0.05 | M51: =IF(M10>=40,IF(M10>=65,$E51,$E52),$E51) -> 0.05
C52: 介護保険第２号被保険者 | E52: 0.0586
B53: 厚生年金 | C53: 厚生年金保険料被保険者 | E53: 0.0856 | I53: =$E53 -> 0.0856 | J53: =$E53 -> 0.0856 | K53: 0.0856 | L53: 0.0856 | M53: 0.0856
B54: 児童手当拠出金 | E54: 0.0013 | I54: =$E54 -> 0.0013 | J54: 0.0013 | K54: 0.0013 | L54: 0.0013 | M54: 0.0013
B55: 健康保険標準報酬月額 | I55: =IF(I10="",0,IF(I10>70,0,標準報酬月額表!F54)) -> 260000 | J55: =IF(J10="",0,IF(J10>70,0,標準報酬月額表!H54)) -> 440000 | K55: =IF(K10="",0,IF(K10>70,0,標準報酬月額表!J54)) -> 110000 | L55: =IF(L10="",0,IF(L10>70,0,標準報酬月額表!L54)) -> 0 | M55: =IF(M10="",0,IF(M10>70,0,標準報酬月額表!N54)) -> 0 | N55: =IF(N10="",0,IF(N10>70,0,標準報酬月額表!K54)) -> 0
B56: 厚生年金標準報酬月額 | I56: =IF(I10="",0,IF(I10>75,0,標準報酬月額表!G54)) -> 260000 | J56: =IF(J10="",0,IF(J10>75,0,標準報酬月額表!I54)) -> 440000 | K56: =IF(K10="",0,IF(K10>75,0,標準報酬月額表!K54)) -> 110000 | L56: =IF(L10="",0,IF(L10>75,0,標準報酬月額表!M54)) -> 0 | M56: =IF(M10="",0,IF(M10>75,0,標準報酬月額表!O54)) -> 0 | N56: =IF(N10="",0,IF(N10>75,0,標準報酬月額表!L54)) -> 0
B57: 健康保険月額 | I57: =IF(ISERROR(ROUNDDOWN(I55*I51,0)),"",ROUNDDOWN(I55*I51,0)) -> 15236 | J57: =IF(ISERROR(ROUNDDOWN(J55*J51,0)),"",ROUNDDOWN(J55*J51,0)) -> 25784 | K57: =IF(ISERROR(ROUNDDOWN(K55*K51,0)),"",ROUNDDOWN(K55*K51,0)) -> 6446 | L57: =IF(ISERROR(ROUNDDOWN(L55*L51,0)),"",ROUNDDOWN(L55*L51,0)) -> 0 | M57: =IF(ISERROR(ROUNDDOWN(M55*M51,0)),"",ROUNDDOWN(M55*M51,0)) -> 0
B58: 厚生年金月額 | I58: =IF(ISERROR(ROUNDDOWN(I56*I53,0)),"",ROUNDDOWN(I56*I53,0)) -> 22256 | J58: =IF(ISERROR(ROUNDDOWN(J56*J53,0)),"",ROUNDDOWN(J56*J53,0)) -> 37664 | K58: =IF(ISERROR(ROUNDDOWN(K56*K53,0)),"",ROUNDDOWN(K56*K53,0)) -> 9416 | L58: =IF(ISERROR(ROUNDDOWN(L56*L53,0)),"",ROUNDDOWN(L56*L53,0)) -> 0 | M58: =IF(ISERROR(ROUNDDOWN(M56*M53,0)),"",ROUNDDOWN(M56*M53,0)) -> 0
B59: 児童手当拠出金月額 | I59: =IF(ISERROR(ROUNDDOWN(I56*I54,0)),"",ROUNDDOWN(I56*I54,0)) -> 338 | J59: =IF(ISERROR(ROUNDDOWN(J56*J54,0)),"",ROUNDDOWN(J56*J54,0)) -> 572 | K59: =IF(ISERROR(ROUNDDOWN(K56*K54,0)),"",ROUNDDOWN(K56*K54,0)) -> 143 | L59: =IF(ISERROR(ROUNDDOWN(L56*L54,0)),"",ROUNDDOWN(L56*L54,0)) -> 0 | M59: =IF(ISERROR(ROUNDDOWN(M56*M54,0)),"",ROUNDDOWN(M56*M54,0)) -> 0
B60: 個人負担合計 | I60: =SUM(I57:I58) -> 37492 | J60: =SUM(J57:J58) -> 63448 | K60: =SUM(K57:K58) -> 15862 | L60: =SUM(L57:L58) -> 0 | M60: =SUM(M57:M58) -> 0
B61: 法人負担合計 | I61: =SUM(I57:I59) -> 37830 | J61: =SUM(J57:J59) -> 64020 | K61: =SUM(K57:K59) -> 16005 | L61: =SUM(L57:L59) -> 0 | M61: =SUM(M57:M59) -> 0
F63: ★その他の所得に係る税金
B64: 所得金額 | I64: =I17+I18 -> 3300000 | J64: =J17+J18 -> 190000 | K64: 0 | L64: 0 | M64: 0 | N64: =SUM(I64:M64) -> 3490000
B65: 所得控除額 | I65: =I34 -> 1309904 | J65: 1210000 | K65: 380000 | L65: 380000 | M65: 380000 | N65: 3659904
B66: 課税所得金額 | I66: =IF(I64-I65<0,0,ROUNDDOWN((I64-I65),-3)) -> 1990000 | J66: =IF(J64-J65<0,0,ROUNDDOWN((J64-J65),-3)) -> 0 | K66: 0 | L66: 0 | M66: 0 | N66: 1990000
B67: 所得税額 | I67: =IF(I66<=1950000,ROUNDDOWN(I66*0.05,0),IF(I66<=3300000,ROUNDDOWN(I66*0.1-97500,0),IF(I66<=6950000,ROUNDDOWN(I66*0.2-427500,0),IF(I66<=9000000,ROUNDDOWN(I66*0.23-636000,0),IF(I66<=18000000,ROUNDDOWN(I66*0.33-1536000,0),ROUNDDOWN(I66*0.4-2796000,0)))))) -> 101500 | J67: =IF(J66<=1950000,ROUNDDOWN(J66*0.05,0),IF(J66<=3300000,ROUNDDOWN(J66*0.1-97500,0),IF(J66<=6950000,ROUNDDOWN(J66*0.2-427500,0),IF(J66<=9000000,ROUNDDOWN(J66*0.23-636000,0),IF(J66<=18000000,ROUNDDOWN(J66*0.33-1536000,0),ROUNDDOWN(J66*0.4-2796000,0)))))) -> 0 | K67: 0 | L67: 0 | M67: 0 | N67: 101500
B68: 所得税+復興特別所得税額 （所得税額×１０２．１％） | I68: =ROUNDDOWN(I67*1.021,-2) -> 103600 | J68: =ROUNDDOWN(J67*1.021,-2) -> 0 | K68: 0 | L68: 0 | M68: 0 | N68: 103600
B69: 住民税額 （所得税課税所得×１０％（概算）） | I69: =ROUNDDOWN(I66*0.1,-2) -> 199000 | J69: =ROUNDDOWN(J66*0.1,-2) -> 0 | K69: 0 | L69: 0 | M69: 0 | N69: 199000
B70: 税額合計 | I70: =SUM(I68:I69) -> 302600 | J70: =SUM(J68:J69) -> 0 | K70: 0 | L70: 0 | M70: 0 | N70: 302600
F72: ★社保加入者役員報酬
I73: =IF(I46="加入",I12,0) -> 3000000 | J73: 0 | K73: 0 | L73: 0 | M73: 0 | N73: =SUM(I73:M73) -> 3000000

Sheet 標準報酬月額表 (hidden)
A1: 標準報酬月額表
A3: 等級 | C3: 標準報酬月額 | E3: 報酬月額 | F3: =給与の情報!I9 -> 笹部 隆一 | H3: =給与の情報!J9 -> 笹部 典子 | J3: =給与の情報!K9 -> 笹部 みつ子 | L3: =給与の情報!L9 -> 0 | N3: =給与の情報!M9 -> 0
F4: =給与の情報!I13 -> 250000 | H4: =給与の情報!J13 -> 447500 | J4: =給与の情報!K13 -> 108000 | L4: =給与の情報!L13 -> 0 | N4: =給与の情報!M13 -> 0
C5: 健康保険 | D5: 厚生年金 | F5: 健康保険 | G5: 厚生年金 | H5: 健康保険 | I5: 厚生年金 | J5: 健康保険 | K5: 厚生年金 | L5: 健康保険 | M5: 厚生年金 | N5: 健康保険 | O5: 厚生年金
A6: 1 | B6: － | C6: 58000 | D6: 98000 | E6: 63000 | F6: =IF(F$4<$E6,$C6,"") ->  | G6: =IF(F$4<$E6,$D6,"") ->  | H6: =IF(H$4<$E6,$C6,"") ->  | I6: =IF(H$4<$E6,$D6,"") ->  | J6: =IF(J$4<$E6,$C6,"") ->  | K6: =IF(J$4<$E6,$D6,"") ->  | L6: =IF(L$4<$E6,$C6,"") -> 58000 | M6: =IF(L$4<$E6,$D6,"") -> 98000 | N6: =IF(N$4<$E6,$C6,"") -> 58000 | O6: =IF(N$4<$E6,$D6,"") -> 98000
A7: 2 | B7: － | C7: 68000 | D7: 98000 | E7: 73000 | F7: =IF(F$4<$E7,$C7,"") ->  | G7: =IF(F$4<$E7,$D7,"") ->  | L7: 68000 | M7: 98000 | N7: 68000 | O7: 98000
A8: 3 | B8: － | C8: 78000 | D8: 98000 | E8: 83000 | L8: 78000 | M8: 98000 | N8: 78000 | O8: 98000
A9: 4 | B9: － | C9: 88000 | D9: 98000 | E9: 93000 | L9: 88000 | M9: 98000 | N9: 88000 | O9: 98000
A10: 5 | B10: 1 | C10: 98000 | D10: 98000 | E10: 101000 | L10: 98000 | M10: 98000 | N10: 98000 | O10: 98000
A11: 6 | B11: 2 | C11: 104000 | D11: 104000 | E11: 107000 | L11: 104000 | M11: 104000 | N11: 104000 | O11: 104000
A12: 7 | B12: 3 | C12: 110000 | D12: 110000 | E12: 114000 | J12: 110000 | K12: 110000 | L12: 110000 | M12: 110000 | N12: 110000 | O12: 110000
A13: 8 | B13: 4 | C13: 118000 | D13: 118000 | E13: 122000 | J13: 118000 | K13: 118000 | L13: 118000 | M13: 118000 | N13: 118000 | O13: 118000
A14: 9 | B14: 5 | C14: 126000 | D14: 126000 | E14: 130000 | J14: 126000 | K14: 126000 | L14: 126000 | M14: 126000 | N14: 126000 | O14: 126000
A15: 10 | B15: 6 | C15: 134000 | D15: 134000 | E15: 138000 | J15: 134000 | K15: 134000 | L15: 134000 | M15: 134000 | N15: 134000 | O15: 134000
A16: 11 | B16: 7 | C16: 142000 | D16: 142000 | E16: 146000 | J16: 142000 | K16: 142000 | L16: 142000 | M16: 142000 | N16: 142000 | O16: 142000
A17: 12 | B17: 8 | C17: 150000 | D17: 150000 | E17: 155000 | J17: 150000 | K17: 150000 | L17: 150000 | M17: 150000 | N17: 150000 | O17: 150000
A18: 13 | B18: 9 | C18: 160000 | D18: 160000 | E18: 165000 | J18: 160000 | K18: 160000 | L18: 160000 | M18: 160000 | N18: 160000 | O18: 160000
A19: 14 | B19: 10 | C19: 170000 | D19: 170000 | E19: 175000 | J19: 170000 | K19: 170000 | L19: 170000 | M19: 170000 | N19: 170000 | O19: 170000
A20: 15 | B20: 11 | C20: 180000 | D20: 180000 | E20: 185000 | J20: 180000 | K20: 180000 | L20: 180000 | M20: 180000 | N20: 180000 | O20: 180000
A21: 16 | B21: 12 | C21: 190000 | D21: 190000 | E21: 195000 | J21: 190000 | K21: 190000 | L21: 190000 | M21: 190000 | N21: 190000 | O21: 190000
A22: 17 | B22: 13 | C22: 200000 | D22: 200000 | E22: 210000 | J22: 200000 | K22: 200000 | L22: 200000 | M22: 200000 | N22: 200000 | O22: 200000
A23: 18 | B23: 14 | C23: 220000 | D23: 220000 | E23: 230000 | J23: 220000 | K23: 220000 | L23: 220000 | M23: 220000 | N23: 220000 | O23: 220000
A24: 19 | B24: 15 | C24: 240000 | D24: 240000 | E24: 250000 | J24: 240000 | K24: 240000 | L24: 240000 | M24: 240000 | N24: 240000 | O24: 240000
A25: 20 | B25: 16 | C25: 260000 | D25: 260000 | E25: 270000 | F25: 260000 | G25: 260000 | J25: 260000 | K25: 260000 | L25: 260000 | M25: 260000 | N25: 260000 | O25: 260000
A26: 21 | B26: 17 | C26: 280000 | D26: 280000 | E26: 290000 | F26: 280000 | G26: 280000 | J26: 280000 | K26: 280000 | L26: 280000 | M26: 280000 | N26: 280000 | O26: 280000
A27: 22 | B27: 18 | C27: 300000 | D27: 300000 | E27: 310000 | F27: 300000 | G27: 300000 | J27: 300000 | K27: 300000 | L27: 300000 | M27: 300000 | N27: 300000 | O27: 300000
A28: 23 | B28: 19 | C28: 320000 | D28: 320000 | E28: 330000 | F28: 320000 | G28: 320000 | J28: 320000 | K28: 320000 | L28: 320000 | M28: 320000 | N28: 320000 | O28: 320000
A29: 24 | B29: 20 | C29: 340000 | D29: 340000 | E29: 350000 | F29: 340000 | G29: 340000 | J29: 340000 | K29: 340000 | L29: 340000 | M29: 340000 | N29: 340000 | O29: 340000
A30: 25 | B30: 21 | C30: 360000 | D30: 360000 | E30: 370000 | F30: 360000 | G30: 360000 | J30: 360000 | K30: 360000 | L30: 360000 | M30: 360000 | N30: 360000 | O30: 360000
A31: 26 | B31: 22 | C31: 380000 | D31: 380000 | E31: 395000 | F31: 380000 | G31: 380000 | J31: 380000 | K31: 380000 | L31: 380000 | M31: 380000 | N31: 380000 | O31: 380000
A32: 27 | B32: 23 | C32: 410000 | D32: 410000 | E32: 425000 | F32: 410000 | G32: 410000 | J32: 410000 | K32: 410000 | L32: 410000 | M32: 410000 | N32: 410000 | O32: 410000
A33: 28 | B33: 24 | C33: 440000 | D33: 440000 | E33: 455000 | F33: 440000 | G33: 440000 | H33: 440000 | I33: 440000 | J33: 440000 | K33: 440000 | L33: 440000 | M33: 440000 | N33: 440000 | O33: 440000
A34: 29 | B34: 25 | C34: 470000 | D34: 470000 | E34: 485000 | F34: 470000 | G34: 470000 | H34: 470000 | I34: 470000 | J34: 470000 | K34: 470000 | L34: 470000 | M34: 470000 | N34: 470000 | O34: 470000
A35: 30 | B35: 26 | C35: 500000 | D35: 500000 | E35: 515000 | F35: 500000 | G35: 500000 | H35: 500000 | I35: 500000 | J35: 500000 | K35: 500000 | L35: 500000 | M35: 500000 | N35: 500000 | O35: 500000
A36: 31 | B36: 27 | C36: 530000 | D36: 530000 | E36: 545000 | F36: 530000 | G36: 530000 | H36: 530000 | I36: 530000 | J36: 530000 | K36: 530000 | L36: 530000 | M36: 530000 | N36: 530000 | O36: 530000
A37: 32 | B37: 28 | C37: 560000 | D37: 560000 | E37: 575000 | F37: 560000 | G37: 560000 | H37: 560000 | I37: 560000 | J37: 560000 | K37: 560000 | L37: 560000 | M37: 560000 | N37: 560000 | O37: 560000
A38: 33 | B38: 29 | C38: 590000 | D38: 590000 | E38: 605000 | F38: 590000 | G38: 590000 | H38: 590000 | I38: 590000 | J38: 590000 | K38: 590000 | L38: 590000 | M38: 590000 | N38: 590000 | O38: 590000
A39: 34 | B39: 30 | C39: 620000 | D39: 620000 | E39: 635000 | F39: 620000 | G39: 620000 | H39: 620000 | I39: 620000 | J39: 620000 | K39: 620000 | L39: 620000 | M39: 620000 | N39: 620000 | O39: 620000
A40: 35 | B40: － | C40: 650000 | D40: 620000 | E40: 665000 | F40: 650000 | G40: 620000 | H40: 650000 | I40: 620000 | J40: 650000 | K40: 620000 | L40: 650000 | M40: 620000 | N40: 650000 | O40: 620000
A41: 36 | B41: － | C41: 680000 | D41: 620000 | E41: 695000 | F41: 680000 | G41: 620000 | H41: 680000 | I41: 620000 | J41: 680000 | K41: 620000 | L41: 680000 | M41: 620000 | N41: 680000 | O41: 620000
A42: 37 | B42: － | C42: 710000 | D42: 620000 | E42: 730000 | F42: 710000 | G42: 620000 | H42: 710000 | I42: 620000 | J42: 710000 | K42: 620000 | L42: 710000 | M42: 620000 | N42: 710000 | O42: 620000
A43: 38 | B43: － | C43: 750000 | D43: 620000 | E43: 770000 | F43: 750000 | G43: 620000 | H43: 750000 | I43: 620000 | J43: 750000 | K43: 620000 | L43: 750000 | M43: 620000 | N43: 750000 | O43: 620000
A44: 39 | B44: － | C44: 790000 | D44: 620000 | E44: 810000 | F44: 790000 | G44: 620000 | H44: 790000 | I44: 620000 | J44: 790000 | K44: 620000 | L44: 790000 | M44: 620000 | N44: 790000 | O44: 620000
A45: 40 | B45: － | C45: 830000 | D45: 620000 | E45: 855000 | F45: 830000 | G45: 620000 | H45: 830000 | I45: 620000 | J45: 830000 | K45: 620000 | L45: 830000 | M45: 620000 | N45: 830000 | O45: 620000
A46: 41 | B46: － | C46: 880000 | D46: 620000 | E46: 905000 | F46: 880000 | G46: 620000 | H46: 880000 | I46: 620000 | J46: 880000 | K46: 620000 | L46: 880000 | M46: 620000 | N46: 880000 | O46: 620000
A47: 42 | B47: － | C47: 930000 | D47: 620000 | E47: 955000 | F47: 930000 | G47: 620000 | H47: 930000 | I47: 620000 | J47: 930000 | K47: 620000 | L47: 930000 | M47: 620000 | N47: 930000 | O47: 620000
A48: 43 | B48: － | C48: 980000 | D48: 620000 | E48: 1005000 | F48: 980000 | G48: 620000 | H48: 980000 | I48: 620000 | J48: 980000 | K48: 620000 | L48: 980000 | M48: 620000 | N48: 980000 | O48: 620000
A49: 44 | B49: － | C49: 1030000 | D49: 620000 | E49: 1055000 | F49: 1030000 | G49: 620000 | H49: 1030000 | I49: 620000 | J49: 1030000 | K49: 620000 | L49: 1030000 | M49: 620000 | N49: 1030000 | O49: 620000
A50: 45 | B50: － | C50: 1090000 | D50: 620000 | E50: 1115000 | F50: 1090000 | G50: 620000 | H50: 1090000 | I50: 620000 | J50: 1090000 | K50: 620000 | L50: 1090000 | M50: 620000 | N50: 1090000 | O50: 620000
A51: 46 | B51: － | C51: 1150000 | D51: 620000 | E51: 1175000 | F51: 1150000 | G51: 620000 | H51: 1150000 | I51: 620000 | J51: 1150000 | K51: 620000 | L51: 1150000 | M51: 620000 | N51: 1150000 | O51: 620000
A52: 47 | B52: － | C52: 1210000 | D52: 620000 | E52: 1175001 | F52: =IF(F$4>=$E52,$C52,"") ->  | G52: =IF(F$4>=$E52,$D52,"") ->  | H52: =IF(H$4>=$E52,$C52,"") ->  | I52: =IF(H$4>=$E52,$D52,"") ->  | J52: =IF(J$4>=$E52,$C52,"") ->  | K52: =IF(J$4>=$E52,$D52,"") ->  | L52: =IF(L$4>=$E52,$C52,"") ->  | M52: =IF(L$4>=$E52,$D52,"") ->  | N52: =IF(N$4>=$E52,$C52,"") ->  | O52: =IF(N$4>=$E52,$D52,"") -> 
F53: =MIN(F6:F52) -> 260000 | G53: 260000 | H53: 440000 | I53: 440000 | J53: 110000 | K53: 110000 | L53: 58000 | M53: 98000 | N53: 58000 | O53: 98000
F54: =IF(F4=0,"",F53) -> 260000 | G54: =IF(F4=0,"",G53) -> 260000 | H54: =IF(H4=0,"",H53) -> 440000 | I54: =IF(H4=0,"",I53) -> 440000 | J54: =IF(J4=0,"",J53) -> 110000 | K54: =IF(J4=0,"",K53) -> 110000 | L54: =IF(L4=0,"",L53) ->  | M54: =IF(L4=0,"",M53) ->  | N54: =IF(N4=0,"",N53) ->  | O54: =IF(N4=0,"",O53) -> 

Sheet 経費の増減
A6: 税理士報酬など個人→法人に変更した際の経費の増減額を入力します
A8: 個人事業の損益計算書
B9: 科 目 | E9: 元の金額 | F9: 増減額 | G9: 増減後の金額
B10: 売上金額 | C10: 賃貸料 | D10: 1 | E10: =個人青色申告決算書!L23 -> 22321530 | G10: =SUM(E10:F10) -> 22321530
C11: 礼金・権利金・更新料 | D11: 2 | E11: =個人青色申告決算書!L25 -> 0 | G11: =SUM(E11:F11) -> 0
C12: =IF(個人青色申告決算書!C27="","",個人青色申告決算書!C27) -> その他の収入金額 | D12: 3 | E12: =個人青色申告決算書!L27 -> 652301 | G12: 652301
C13: 計 | D13: 4 | E13: =SUM(E10:E12) -> 22973831 | G13: =SUM(G10:G12) -> 22973831
B14: 必 要 経 費 | C14: =IF(個人青色申告決算書!C31="","",個人青色申告決算書!C31) -> 租税公課 | D14: 5 | E14: =個人青色申告決算書!L31 -> 840520 | G14: =SUM(E14:F14) -> 840520
C15: =IF(個人青色申告決算書!C33="","",個人青色申告決算書!C33) -> 損害保険料 | D15: 6 | E15: =個人青色申告決算書!L33 -> 35612 | G15: 35612
C16: =IF(個人青色申告決算書!C35="","",個人青色申告決算書!C35) -> 修繕費 | D16: 7 | E16: =個人青色申告決算書!L35 -> 459800 | G16: 459800
C17: =IF(個人青色申告決算書!C37="","",個人青色申告決算書!C37) -> 減価償却費 | D17: 8 | E17: =個人青色申告決算書!L37 -> 5200621 | G17: 5200621
C18: =IF(個人青色申告決算書!C39="","",個人青色申告決算書!C39) -> 借入金利子 | D18: 9 | E18: =個人青色申告決算書!L39 -> 2232111 | G18: 2232111
C19: =IF(個人青色申告決算書!C41="","",個人青色申告決算書!C41) -> 地代家賃 | D19: 10 | E19: =個人青色申告決算書!L41 -> 0 | G19: 0
C20: =IF(個人青色申告決算書!C43="","",個人青色申告決算書!C43) -> 給料賃金 | D20: 11 | E20: =個人青色申告決算書!L43 -> 0 | G20: 0
C21: =IF(個人青色申告決算書!C45="","",個人青色申告決算書!C45) -> 管理手数料 | D21: 12 | E21: =個人青色申告決算書!L45 -> 180000 | G21: 180000
C22: =IF(個人青色申告決算書!Z23="","",個人青色申告決算書!Z23) -> 支払手数料 | D22: 13 | E22: =個人青色申告決算書!AJ23 -> 63000 | G22: 63000
C23: =IF(個人青色申告決算書!Z25="","",個人青色申告決算書!Z25) ->  | D23: 14 | E23: =個人青色申告決算書!AJ25 -> 0 | G23: 0
C24: =IF(個人青色申告決算書!Z27="","",個人青色申告決算書!Z27) ->  | D24: 15 | E24: =個人青色申告決算書!AJ27 -> 0 | G24: 0
C25: =IF(個人青色申告決算書!Z29="","",個人青色申告決算書!Z29) -> 税理士報酬 | D25: 16 | E25: =個人青色申告決算書!AJ29 -> 52500 | F25: 338800 | G25: 391300
C26: =IF(個人青色申告決算書!Z31="","",個人青色申告決算書!Z31) -> その他の経費 | D26: 17 | E26: =個人青色申告決算書!AJ31 -> 31500 | G26: 31500
C27: 計 | D27: 18 | E27: =SUM(E14:E26) -> 9095664 | G27: =SUM(G14:G26) -> 9434464
B28: 差引金額 | D28: 19 | E28: =E13-E27 -> 13878167 | G28: =G13-G27 -> 13539367
B29: 専従者給与 | D29: 20 | E29: =個人青色申告決算書!AJ37 -> 960000 | F29: =-E29 -> -960000 | G29: =SUM(E29:F29) -> 0
B30: 青色特別控除前の所得金額 | D30: 21 | E30: =E28-E29 -> 12918167 | G30: =G28-G29 -> 13539367
A33: ※法人成りすると、税理士顧問料はアップするのが一般的です。
A34: ※法人成り後、現物給与などを利用して経費を増加させる場合には、適宜その
A35: 金額を入力していきます。

Sheet 税前ＰＬの組替
B6: 税引前損益計算書の個人から法人への組替
A8: 不動産所得の損益計算書 | G8: 法人の損益計算書
B9: 科 目 | E9: 金 額 | G9: 科 目 | I9: 金 額
B10: 売上金額 | C10: 賃貸料 | D10: 1 | E10: =経費の増減!G10 -> 22321530 | G10: 売上金額 | H10: =IF(C10="","",C10) -> 賃貸料 | I10: =IF(E10="","",E10) -> 22321530
C11: 礼金・権利金・更新料 | D11: 2 | E11: =経費の増減!G11 -> 0 | H11: =IF(C11="","",C11) -> 礼金・権利金・更新料 | I11: 0
C12: =IF(個人青色申告決算書!C27="","",個人青色申告決算書!C27) -> その他の収入金額 | D12: 3 | E12: =経費の増減!G12 -> 652301 | H12: その他の収入金額 | I12: 652301
C13: 計 | D13: 4 | E13: =経費の増減!G13 -> 22973831 | H13: 計 | I13: 22973831
B14: 必 要 経 費 | C14: =IF(個人青色申告決算書!C31="","",個人青色申告決算書!C31) -> 租税公課 | D14: 5 | E14: =経費の増減!G14 -> 840520 | G14: 販売費及び一般管理費 | H14: =IF(C14="","",C14) -> 租税公課 | I14: 840520
C15: =IF(個人青色申告決算書!C33="","",個人青色申告決算書!C33) -> 損害保険料 | D15: 6 | E15: =経費の増減!G15 -> 35612 | H15: 損害保険料 | I15: 35612
C16: =IF(個人青色申告決算書!C35="","",個人青色申告決算書!C35) -> 修繕費 | D16: 7 | E16: =経費の増減!G16 -> 459800 | H16: 修繕費 | I16: 459800
C17: =IF(個人青色申告決算書!C37="","",個人青色申告決算書!C37) -> 減価償却費 | D17: 8 | E17: =経費の増減!G17 -> 5200621 | H17: 減価償却費 | I17: 5200621
C18: =IF(個人青色申告決算書!C39="","",個人青色申告決算書!C39) -> 借入金利子 | D18: 9 | E18: =経費の増減!G18 -> 2232111 | H18: 借入金利子 | I18: =IF(E18="","",E18-E18) -> 0
C19: =IF(個人青色申告決算書!C41="","",個人青色申告決算書!C41) -> 地代家賃 | D19: 10 | E19: =経費の増減!G19 -> 0 | H19: 地代家賃 | I19: =IF(E19="","",E19) -> 0
C20: =IF(個人青色申告決算書!C43="","",個人青色申告決算書!C43) -> 給料賃金 | D20: 11 | E20: =経費の増減!G20 -> 0 | H20: 給料賃金 | I20: 0
C21: =IF(個人青色申告決算書!C45="","",個人青色申告決算書!C45) -> 管理手数料 | D21: 12 | E21: =経費の増減!G21 -> 180000 | H21: 管理手数料 | I21: 180000
C22: =IF(個人青色申告決算書!Z23="","",個人青色申告決算書!Z23) -> 支払手数料 | D22: 13 | E22: =経費の増減!G22 -> 63000 | H22: 支払手数料 | I22: 63000
C23: =IF(個人青色申告決算書!Z25="","",個人青色申告決算書!Z25) ->  | D23: 14 | E23: =経費の増減!G23 -> 0 | I23: 0
C24: =IF(個人青色申告決算書!Z27="","",個人青色申告決算書!Z27) ->  | D24: 15 | E24: =経費の増減!G24 -> 0 | I24: 0
C25: =IF(個人青色申告決算書!Z29="","",個人青色申告決算書!Z29) -> 税理士報酬 | D25: 16 | E25: =経費の増減!G25 -> 391300 | H25: 税理士報酬 | I25: 391300
C26: =IF(個人青色申告決算書!Z31="","",個人青色申告決算書!Z31) -> その他の経費 | D26: 17 | E26: =経費の増減!G26 -> 31500 | H26: その他の経費 | I26: 31500
C27: 計 | D27: 18 | E27: =経費の増減!G27 -> 9434464 | H27: 法定福利費 | I27: =給与の情報!N47 -> 453960
B28: 差引金額 | D28: 19 | E28: =経費の増減!G28 -> 13539367 | H28: 役員報酬 | I28: =給与の情報!N12 -> 9666000
B29: 専従者給与 | D29: 20 | E29: =経費の増減!G29 -> 0 | H29: 販売費及び一般管理費計 | I29: =SUM(I14:I28) -> 17322313
B30: 青色特別控除前の所得金額 | D30: 21 | E30: =経費の増減!G30 -> 13539367 | G30: 営業利益 | I30: =I13-I29 -> 5651518
G31: 営外収益
A32: ※通常は特に追加入力する項目はありません。
H34: 計 | I34: =SUM(I31:I33) -> 0
G35: 営外費用 | H35: 支払利息割引料 | I35: =IF(E18="","",E18) -> 2232111
H38: 計 | I38: =SUM(I35:I37) -> 2232111
G39: 経常利益 | I39: =I30+I34-I38 -> 3419407
G40: 特別利益
H42: 計 | I42: =SUM(I40:I41) -> 0
G43: 特別損失
H45: 計 | I45: =SUM(I43:I44) -> 0
G46: 税引前当期純利益 | I46: =I39+I42-I45 -> 3419407

Sheet 法人税シミュレーション
A6: 法人成りした場合の法人税等シミュレーション
A7: １、所得の計算（別表４） | E7: ２、 法人税の計算 | H7: 4、事業税・県民税の計算
A8: 税引前当期利益 | C8: =税前ＰＬの組替!I46 -> 3419407 | E8: 所得金額 | F8: =C21 -> 3419407 | H8: 法人事業税
E9: 800万以下の金額 | F9: =IF(F8<=0,0,IF($F$8<=8000000,ROUNDDOWN($F$8/1000,0)*1000,8000000)) -> 3419000 | H9: 400万以下の金額 | I9: =IF(F8<=0,0,IF($F$8<=4000000,ROUNDDOWN($F$8/1000,0)*1000,4000000)) -> 3419000
A10: 加 | E10: 800万超の金額 | F10: =IF($F$8>8000000,ROUNDDOWN(($F$8-8000000)/1000,0)*1000,0) -> 0 | H10: 800万以下の金額 | I10: =IF($F$8<=4000000,0,IF($F$8<=8000000,ROUNDDOWN(($F$8-4000000)/1000,0)*1000,4000000)) -> 0
E11: 800万までの税率 | F11: 0.15 | H11: 800万超の金額 | I11: =IF(F8<=8000000,0,ROUNDDOWN((F8-8000000)/1000,0)*1000) -> 0
A12: 算 | E12: 800万超の税率 | F12: 0.255 | H12: 400万以下の税率 | I12: 0.027
E13: 800万までの税額 | F13: =ROUNDDOWN((F9*F11)/100,0)*100 -> 512800 | H13: 800万以下の税率 | I13: 0.04
A14: 加算小計 | C14: =SUM(C9:C13) -> 0 | E14: 800万超の税額 | F14: =ROUNDDOWN((F10*F12)/100,0)*100 -> 0 | H14: 800万超の税率 | I14: 0.053
E15: 法人税 | F15: =SUM(F13:F14) -> 512800 | H15: 400万以下の税額 | I15: =ROUNDDOWN(I9*I12/100,0)*100 -> 92300
A16: 減 | E16: ３、市民税の計算 | H16: 800万以下の税額 | I16: =ROUNDDOWN(I10*I13/100,0)*100 -> 0
E17: 法人税割 | H17: 800万超の税額 | I17: =ROUNDDOWN(I11*I14/100,0)*100 -> 0
A18: 算 | E18: =H16 -> 800万以下の税額 | F18: =I20 -> 512000 | H18: 法人事業税 | I18: =SUM(I15:I17) -> 92300
E19: 法人税割税率 | F19: 0.123 | H19: 法人県民税
A20: 減算小計 | C20: =SUM(C15:C19) -> 0 | E20: 法人税割税額 | F20: =ROUNDDOWN(F18*F19/100,0)*100 -> 62900 | H20: 法人税額 | I20: =ROUNDDOWN(F15/1000,0)*1000 -> 512000
A21: 所得金額 | C21: =C8+C14-C20 -> 3419407 | E21: 法人税均等割 | H21: 法人税割税率 | I21: 0.05
E22: 法人均等割額 | F22: 50000 | H22: 法人税割額 | I22: =ROUNDDOWN((I20*I21)/100,0)*100 -> 25600
E23: 法人税均等割 | F23: =SUM(F22) -> 50000 | H23: 法人均等割額 | I23: 20000
E24: 法人市民税 | F24: =F20+F23 -> 112900 | H24: 法人税均等割 | I24: =SUM(I23) -> 20000
H25: 法人県民税 | I25: =I22+I24 -> 45600
B26: ★税額まとめ | E26: ★法定実効税率 | H26: 地方法人特別税（国税）
B27: 法人税 | C27: =F15+F19 -> 512800.123 | E27: 赤字 | F27: 0 | H27: 400万以下の金額 | I27: =IF(F8<=0,0,IF($F$8<=4000000,ROUNDDOWN($F$8/1000,0)*1000,4000000)) -> 3419000
B28: =H18 -> 法人事業税 | C28: =I18 -> 92300 | E28: 400万以下の税率 | F28: =(F11*(1+F19+I21)+I12+I30*0.81)/(1+I12+I30*0.81) -> 0.2143449617 | H28: 800万以下の金額 | I28: =IF($F$8<=4000000,0,IF($F$8<=8000000,ROUNDDOWN(($F$8-4000000)/1000,0)*1000,4000000)) -> 0
B29: =H25 -> 法人県民税 | C29: =I25 -> 45600 | E29: 800万以下の税率 | F29: =(F11*(1+F19+I21)+I13+I31*0.81)/(1+I13+I31*0.81) -> 0.2315833644 | H29: 800万超の金額 | I29: =IF(F8<=8000000,0,ROUNDDOWN((F8-8000000)/1000,0)*1000) -> 0
B30: =H37 -> 地方法人特別税 | C30: =I37 -> 74700 | E30: 800万超の税率 | F30: =(F12*(1+F19+I21)+I14+I32*0.81)/(1+I14+I32*0.81) -> 0.3604655407 | H30: 400万以下の税率 | I30: 0.027
B31: =E24 -> 法人市民税 | C31: =F24 -> 112900 | H31: 800万以下の税率 | I31: 0.04
B32: 合計 | C32: =SUM(C27:C31) -> 838300.123 | H32: 800万超の税率 | I32: 0.053
H33: 400万以下の税額 | I33: =ROUNDDOWN(I27*I30/100,0)*100 -> 92300
A34: ※通常は特に追加入力する数字はありません。 | H34: 800万以下の税額 | I34: =ROUNDDOWN(I28*I31/100,0)*100 -> 0
A35: ※申告する自治体によって、住民税は税率や均等割額が変わります。 | H35: 800万超の税額 | I35: =ROUNDDOWN(I29*I32/100,0)*100 -> 0
A36: 自治体のＨＰなどから確認して、上書き訂正してください。 | H36: 基準法人所得割額 | I36: =SUM(I33:I35) -> 92300
H37: 地方法人特別税 | I37: =ROUNDDOWN(I36*0.81,-2) -> 74700
E40: ★法定実効税率
E41: =IF(F8<=0,"0.00%(所得マイナス)",IF(F8<=4000000,F28,IF(F8<=8000000,F29,F30))) -> 0.2143449617
E42: ★役員報酬に対する社保法人負担率
E43: =IF(ISERROR(給与の情報!N47/給与の情報!N73),0,給与の情報!N47/給与の情報!N73) -> 0.15132

Sheet まとめ
A4: =基本情報入力!F8&"様" -> 笹部 隆一様 | I4: 小林敬幸税理士事務所
A6: 個人事業を法人事業に変更した場合の負担額変化シミュレーション
A8: １．損益計算書の比較 | F8: ２、税負担及び社会保険料の変化
F9: 個人事業
A10: 個人事業の損益計算書 | F10: ①事業主の税金
A11: 科 目 | D11: 金 額 | F11: 税目 | G11: 合計 | H11: うち他所得分 | I11: 不動産所得分
A12: 売上金額 | B12: =IF(税前ＰＬの組替!C10="","",税前ＰＬの組替!C10) -> 賃貸料 | C12: 1 | D12: =経費の増減!E10 -> 22321530 | F12: 所得税 | G12: =SUM(事業主の所得税申告状況!D33,事業主の所得税申告状況!G33,事業主の所得税申告状況!J33) -> 1807400 | H12: =SUM(事業主の所得税申告状況!D44,事業主の所得税申告状況!G44,事業主の所得税申告状況!J44) -> 88800 | I12: =G12-H12 -> 1718600
B13: =IF(税前ＰＬの組替!C11="","",税前ＰＬの組替!C11) -> 礼金・権利金・更新料 | C13: 2 | D13: =経費の増減!E11 -> 0 | F13: 住民税 | G13: =SUM(事業主の所得税申告状況!D34,事業主の所得税申告状況!G34,事業主の所得税申告状況!J34) -> 1298800 | H13: =SUM(事業主の所得税申告状況!D45,事業主の所得税申告状況!G45,事業主の所得税申告状況!J45) -> 174000 | I13: =G13-H13 -> 1124800
B14: =IF(税前ＰＬの組替!C12="","",税前ＰＬの組替!C12) -> その他の収入金額 | C14: 3 | D14: =経費の増減!E12 -> 652301 | F14: 事業税 | G14: =SUM(事業主の所得税申告状況!D35,事業主の所得税申告状況!G35,事業主の所得税申告状況!J35) -> 355800 | I14: 355800
B15: 計 | C15: 4 | D15: =経費の増減!E13 -> 22973831 | F15: 合計 | G15: =SUM(G12:G14) -> 3462000 | H15: =SUM(H12:H14) -> 262800 | I15: =SUM(I12:I14) -> 3199200
A16: 必 要 経 費 | B16: =IF(税前ＰＬの組替!C14="","",税前ＰＬの組替!C14) -> 租税公課 | C16: 5 | D16: =経費の増減!E14 -> 840520
B17: =IF(税前ＰＬの組替!C15="","",税前ＰＬの組替!C15) -> 損害保険料 | C17: 6 | D17: =経費の増減!E15 -> 35612 | F17: ②専従者の税金
B18: =IF(税前ＰＬの組替!C16="","",税前ＰＬの組替!C16) -> 修繕費 | C18: 7 | D18: =経費の増減!E16 -> 459800 | F18: 所得税 | G18: =給与の情報!G37 -> 0 | I18: =G18-H18 -> 0
B19: =IF(税前ＰＬの組替!C17="","",税前ＰＬの組替!C17) -> 減価償却費 | C19: 8 | D19: =経費の増減!E17 -> 5200621 | F19: 住民税 | G19: =給与の情報!G38 -> 0 | I19: 0
B20: =IF(税前ＰＬの組替!C18="","",税前ＰＬの組替!C18) -> 借入金利子 | C20: 9 | D20: =経費の増減!E18 -> 2232111 | F20: 合計 | G20: =SUM(G18:G19) -> 0 | I20: =SUM(I18:I19) -> 0
B21: =IF(税前ＰＬの組替!C19="","",税前ＰＬの組替!C19) -> 地代家賃 | C21: 10 | D21: =経費の増減!E19 -> 0
B22: =IF(税前ＰＬの組替!C20="","",税前ＰＬの組替!C20) -> 給料賃金 | C22: 11 | D22: =経費の増減!E20 -> 0 | F22: 税金合計 | G22: =SUM(G15,G20) -> 3462000 | I22: =SUM(I15,I20) -> 3199200
B23: =IF(税前ＰＬの組替!C21="","",税前ＰＬの組替!C21) -> 管理手数料 | C23: 12 | D23: =経費の増減!E21 -> 180000
B24: =IF(税前ＰＬの組替!C22="","",税前ＰＬの組替!C22) -> 支払手数料 | C24: 13 | D24: =経費の増減!E22 -> 63000 | F24: ③社会保険料 | H24: ④不動産所得税金+社保合計
B25: =IF(税前ＰＬの組替!C23="","",税前ＰＬの組替!C23) ->  | C25: 14 | D25: =経費の増減!E23 -> 0 | F25: 国民健康保険料 | G25: =SUM(事業主の所得税申告状況!D17,事業主の所得税申告状況!G17,事業主の所得税申告状況!J17) -> 1060000 | H25: =I22+G28 -> 4769200
B26: =IF(税前ＰＬの組替!C24="","",税前ＰＬの組替!C24) ->  | C26: 15 | D26: =経費の増減!E24 -> 0 | F26: 事業主の国民年金 | G26: =SUM(事業主の所得税申告状況!D18,事業主の所得税申告状況!G18,事業主の所得税申告状況!J18) -> 340000
B27: =IF(税前ＰＬの組替!C25="","",税前ＰＬの組替!C25) -> 税理士報酬 | C27: 16 | D27: =経費の増減!E25 -> 52500 | F27: 専従者の国民年金 | G27: =給与の情報!G22 -> 170000
B28: =IF(税前ＰＬの組替!C26="","",税前ＰＬの組替!C26) -> その他の経費 | C28: 17 | D28: =経費の増減!E26 -> 31500 | F28: 合計 | G28: =SUM(G25:G27) -> 1570000
B29: 計 | C29: 18 | D29: =経費の増減!E27 -> 9095664
A30: 差引金額 | C30: 19 | D30: =経費の増減!E28 -> 13878167 | F30: 法人設立後
A31: 専従者給与 | C31: 20 | D31: =経費の増減!E29 -> 960000 | F31: ①法人の税金
A32: 青色特別控除前の所得金額 | C32: 21 | D32: =経費の増減!E30 -> 12918167 | F32: 法人税 | G32: =法人税シミュレーション!C27 -> 512800.123
F33: 法人事業税 | G33: =法人税シミュレーション!C28 -> 92300
A34: 法人設立後の損益計算書 | F34: 法人県民税 | G34: =法人税シミュレーション!C29 -> 45600
A35: 科 目 | C35: 金 額 | F35: 地方法人特別税 | G35: =法人税シミュレーション!C30 -> 74700
A36: 売上金額 | B36: =IF(税前ＰＬの組替!H10="","",税前ＰＬの組替!H10) -> 賃貸料 | C36: =IF(税前ＰＬの組替!I10="","",税前ＰＬの組替!I10) -> 22321530 | F36: 法人市民税 | G36: =法人税シミュレーション!C31 -> 112900
B37: =IF(税前ＰＬの組替!H11="","",税前ＰＬの組替!H11) -> 礼金・権利金・更新料 | C37: =IF(税前ＰＬの組替!I11="","",税前ＰＬの組替!I11) -> 0 | F37: 合計 | G37: =SUM(G32:G36) -> 838300.123
B38: =IF(税前ＰＬの組替!H12="","",税前ＰＬの組替!H12) -> その他の収入金額 | C38: =IF(税前ＰＬの組替!I12="","",税前ＰＬの組替!I12) -> 652301
B39: 計 | C39: =IF(税前ＰＬの組替!I13="","",税前ＰＬの組替!I13) -> 22973831 | F39: ②事業主と家族役員の税金
A40: 販売費及び一般管理費 | B40: =IF(税前ＰＬの組替!H14="","",税前ＰＬの組替!H14) -> 租税公課 | C40: =IF(税前ＰＬの組替!I14="","",税前ＰＬの組替!I14) -> 840520 | F40: 税目 | G40: 合計 | H40: うち他所得分 | I40: 不動産事業分
B41: =IF(税前ＰＬの組替!H15="","",税前ＰＬの組替!H15) -> 損害保険料 | C41: =IF(税前ＰＬの組替!I15="","",税前ＰＬの組替!I15) -> 35612 | F41: 所得税 | G41: =給与の情報!N37 -> 726900 | H41: =給与の情報!N68 -> 103600 | I41: =G41-H41 -> 623300
B42: =IF(税前ＰＬの組替!H16="","",税前ＰＬの組替!H16) -> 修繕費 | C42: =IF(税前ＰＬの組替!I16="","",税前ＰＬの組替!I16) -> 459800 | F42: 住民税 | G42: =給与の情報!N38 -> 799400 | H42: =給与の情報!N69 -> 199000 | I42: =G42-H42 -> 600400
B43: =IF(税前ＰＬの組替!H17="","",税前ＰＬの組替!H17) -> 減価償却費 | C43: =IF(税前ＰＬの組替!I17="","",税前ＰＬの組替!I17) -> 5200621 | F43: 合計 | G43: =SUM(G41:G42) -> 1526300 | H43: =SUM(H41:H42) -> 302600 | I43: =SUM(I41:I42) -> 1223700
B44: =IF(税前ＰＬの組替!H18="","",税前ＰＬの組替!H18) -> 借入金利子 | C44: =IF(税前ＰＬの組替!I18="","",税前ＰＬの組替!I18) -> 0
B45: =IF(税前ＰＬの組替!H19="","",税前ＰＬの組替!H19) -> 地代家賃 | C45: =IF(税前ＰＬの組替!I19="","",税前ＰＬの組替!I19) -> 0 | F45: 税金合計 | G45: =SUM(G37,G43) -> 2364600.123 | I45: =SUM(G37,I43) -> 2062000.123
B46: =IF(税前ＰＬの組替!H20="","",税前ＰＬの組替!H20) -> 給料賃金 | C46: =IF(税前ＰＬの組替!I20="","",税前ＰＬの組替!I20) -> 0
B47: =IF(税前ＰＬの組替!H21="","",税前ＰＬの組替!H21) -> 管理手数料 | C47: =IF(税前ＰＬの組替!I21="","",税前ＰＬの組替!I21) -> 180000 | F47: ③社会保険料 | H47: ④不動産事業税金+社保合計
B48: =IF(税前ＰＬの組替!H22="","",税前ＰＬの組替!H22) -> 支払手数料 | C48: =IF(税前ＰＬの組替!I22="","",税前ＰＬの組替!I22) -> 63000 | F48: 法人負担保険料 | G48: =給与の情報!N47 -> 453960 | H48: =I45+G53 -> 3665864.123
B49: =IF(税前ＰＬの組替!H23="","",税前ＰＬの組替!H23) ->  | C49: =IF(税前ＰＬの組替!I23="","",税前ＰＬの組替!I23) -> 0 | F49: 事業主・家族役員負担保険料 | G49: =給与の情報!N48 -> 449904
B50: =IF(税前ＰＬの組替!H24="","",税前ＰＬの組替!H24) ->  | C50: =IF(税前ＰＬの組替!I24="","",税前ＰＬの組替!I24) -> 0
B51: =IF(税前ＰＬの組替!H25="","",税前ＰＬの組替!H25) -> 税理士報酬 | C51: =IF(税前ＰＬの組替!I25="","",税前ＰＬの組替!I25) -> 391300 | F51: 国民健康保険料（未加入の場合） | G51: =給与の情報!N21 -> 530000
B52: =IF(税前ＰＬの組替!H26="","",税前ＰＬの組替!H26) -> その他の経費 | C52: =IF(税前ＰＬの組替!I26="","",税前ＰＬの組替!I26) -> 31500 | F52: 国民年金（未加入の場合） | G52: =給与の情報!N22 -> 170000
B53: =IF(税前ＰＬの組替!H27="","",税前ＰＬの組替!H27) -> 法定福利費 | C53: =IF(税前ＰＬの組替!I27="","",税前ＰＬの組替!I27) -> 453960 | F53: 合計 | G53: =SUM(G48:G52) -> 1603864
B54: =IF(税前ＰＬの組替!H28="","",税前ＰＬの組替!H28) -> 役員報酬 | C54: =IF(税前ＰＬの組替!I28="","",税前ＰＬの組替!I28) -> 9666000
B55: 販売費及び一般管理費計 | C55: =IF(税前ＰＬの組替!I29="","",税前ＰＬの組替!I29) -> 17322313
A56: 営業利益 | C56: =IF(税前ＰＬの組替!I30="","",税前ＰＬの組替!I30) -> 5651518
A57: 営外収益 | B57: =IF(税前ＰＬの組替!H31="","",税前ＰＬの組替!H31) ->  | C57: =IF(税前ＰＬの組替!I31="","",税前ＰＬの組替!I31) -> 
B58: =IF(税前ＰＬの組替!H32="","",税前ＰＬの組替!H32) ->  | C58: =IF(税前ＰＬの組替!I32="","",税前ＰＬの組替!I32) -> 
B59: =IF(税前ＰＬの組替!H33="","",税前ＰＬの組替!H33) ->  | C59: =IF(税前ＰＬの組替!I33="","",税前ＰＬの組替!I33) -> 
B60: 計 | C60: =IF(税前ＰＬの組替!I34="","",税前ＰＬの組替!I34) -> 0
A61: 営外費用 | B61: 支払利息割引料 | C61: =IF(税前ＰＬの組替!I35="","",税前ＰＬの組替!I35) -> 2232111
B62: =IF(税前ＰＬの組替!H36="","",税前ＰＬの組替!H36) ->  | C62: =IF(税前ＰＬの組替!I36="","",税前ＰＬの組替!I36) -> 
B63: =IF(税前ＰＬの組替!H37="","",税前ＰＬの組替!H37) ->  | C63: =IF(税前ＰＬの組替!I37="","",税前ＰＬの組替!I37) -> 
B64: 計 | C64: =IF(税前ＰＬの組替!I38="","",税前ＰＬの組替!I38) -> 2232111
A65: 経常利益 | C65: =IF(税前ＰＬの組替!I39="","",税前ＰＬの組替!I39) -> 3419407
A66: 特別利益 | B66: =IF(税前ＰＬの組替!H40="","",税前ＰＬの組替!H40) ->  | C66: =IF(税前ＰＬの組替!I40="","",税前ＰＬの組替!I40) -> 
B67: =IF(税前ＰＬの組替!H41="","",税前ＰＬの組替!H41) ->  | C67: =IF(税前ＰＬの組替!I41="","",税前ＰＬの組替!I41) -> 
B68: 計 | C68: =IF(税前ＰＬの組替!I42="","",税前ＰＬの組替!I42) -> 0
A69: 特別損失 | B69: =IF(税前ＰＬの組替!H43="","",税前ＰＬの組替!H43) ->  | C69: =IF(税前ＰＬの組替!I43="","",税前ＰＬの組替!I43) -> 
B70: =IF(税前ＰＬの組替!H44="","",税前ＰＬの組替!H44) ->  | C70: =IF(税前ＰＬの組替!I44="","",税前ＰＬの組替!I44) -> 
B71: 計 | C71: =IF(税前ＰＬの組替!I45="","",税前ＰＬの組替!I45) -> 0
A72: 税引前当期純利益 | C72: =IF(税前ＰＬの組替!I46="","",税前ＰＬの組替!I46) -> 3419407

Sheet 所得税額表 (hidden)
A1: 所得税の税率
A2: 課税される所得金額 | C2: 税率 | D2: 控除額
A3: 以上 | B3: 以下
A4: 0 | B4: 1950000 | C4: 0.05 | D4: 0
A5: 1950001 | B5: 3300000 | C5: 0.1 | D5: 97500
A6: 3300001 | B6: 6950000 | C6: 0.2 | D6: 427500
A7: 6950001 | B7: 9000000 | C7: 0.23 | D7: 636000
A8: 9000001 | B8: 18000000 | C8: 0.33 | D8: 1536000
A9: 18000001 | B9: 40000000 | C9: 0.4 | D9: 2796000
A10: 40000001 | C10: 0.45 | D10: 4796000
